bitfinex-derivatives/quotes_BTCF0:USTF0_20251011
["timestamp","ask_amount","ask_price","bid_price","bid_amount"]
[1760207536635,0.4852038,111890.0,111880.0,0.02107]
[1760207537338,0.4852038,111890.0,111880.0,0.11948936]
[1760207537737,0.4852038,111890.0,111880.0,0.1103619]
[1760207538035,0.4852038,111890.0,111880.0,0.02107]
[1760207540836,0.4852038,111890.0,111880.0,0.1103619]
[1760207544532,0.4852038,111890.0,111880.0,0.02107]
[1760207550739,0.01365,111880.0,111870.0,0.09827619]
[1760207550943,0.39592,111880.0,111870.0,0.11934619]
[1760207552045,0.39592,111880.0,111870.0,0.13199619]
[1760207553041,0.39592,111880.0,111870.0,0.13299619]
[1760207554345,0.39592,111880.0,111870.0,0.61559697]
[1760207554546,0.39592,111880.0,111870.0,0.13299619]
[1760207554841,0.39592,111880.0,111870.0,0.61559697]
[1760207557352,0.38227,111880.0,111870.0,0.61559697]
[1760207558848,0.39592,111880.0,111870.0,0.61559697]
[1760207563552,0.39592,111880.0,111870.0,0.69573896]
[1760207567958,0.39592,111880.0,111870.0,0.68308896]
[1760207568156,0.39592,111880.0,111870.0,0.20048818]
[1760207571159,0.39592,111880.0,111870.0,0.12034619]
[1760207572961,0.39592,111880.0,111870.0,0.60294697]
[1760207576667,0.39592,111880.0,111870.0,0.12034619]
[1760207578374,0.39592,111880.0,111870.0,0.20048818]
[1760207585872,0.39592,111880.0,111870.0,0.68308896]
[1760207587678,0.39592,111880.0,111870.0,0.20048818]
[1760207588175,0.39592,111880.0,111870.0,0.68308896]
[1760207590168,0.38227,111880.0,111870.0,0.61559697]
[1760207590373,0.3608,111880.0,111870.0,0.61559697]
[1760207590574,0.3822,111880.0,111870.0,0.13299619]
[1760207590772,0.3822,111880.0,111870.0,0.61559697]
[1760207591577,0.3822,111880.0,111870.0,1.21917367]
[1760207592173,0.3822,111880.0,111870.0,0.67608493]
[1760207593078,0.39669,111890.0,111880.0,0.1105117]
[1760207593274,0.39669,111890.0,111880.0,0.65360044]
[1760207596277,0.02224,111890.0,111880.0,0.66055044]
[1760207596470,0.02224,111890.0,111880.0,1.02135044]
[1760207596982,0.02224,111890.0,111880.0,0.66055044]
[1760207597182,0.03573,111890.0,111880.0,0.66055044]
[1760207597580,0.39653,111890.0,111880.0,0.66055044]
[1760207598383,0.39653,111890.0,111880.0,0.65360044]
[1760207598982,0.4858138,111890.0,111880.0,0.65360044]
[1760207599282,0.39653,111890.0,111880.0,0.65360044]
[1760207602986,0.39653,111890.0,111880.0,0.66055044]
[1760207604788,0.39653,111890.0,111880.0,0.74069243]
[1760207606593,0.38304,111890.0,111880.0,0.74069243]
[1760207606893,0.02224,111900.0,111890.0,0.1231538]
[1760207607086,0.02224,111900.0,111890.0,1.10735763]
[1760207608595,0.46809887,111910.0,111900.0,0.1231459]
[1760207608894,0.46809887,111910.0,111900.0,1.20932338]
[1760207609289,0.46809887,111910.0,111900.0,0.1104959]
[1760207609597,0.55736677,111910.0,111900.0,0.65358464]
[1760207610694,0.55836677,111910.0,111900.0,0.65358464]
[1760207618802,1.10145551,111910.0,111900.0,0.65358464]
[1760207619606,1.10145551,111910.0,111900.0,0.1104959]
[1760207619802,1.10145551,111910.0,111900.0,0.65358464]
[1760207625200,1.10145551,111910.0,111900.0,0.1104959]
[1760207625400,1.10145551,111910.0,111900.0,0.65358464]
[1760207626906,0.55836677,111910.0,111900.0,0.65358464]
[1760207627108,1.10145551,111910.0,111900.0,0.65358464]
[1760207629508,0.55836677,111910.0,111900.0,0.65358464]
[1760207629807,1.10145551,111910.0,111900.0,0.65358464]
[1760207630208,0.55836677,111910.0,111900.0,0.65358464]
[1760207633005,1.10145551,111910.0,111900.0,0.65358464]
[1760207637409,1.10145551,111910.0,111900.0,0.1104959]
[1760207637611,1.10145551,111910.0,111900.0,0.65358464]
[1760207639917,0.55836677,111910.0,111900.0,0.65358464]
[1760207640216,1.10145551,111910.0,111900.0,0.65358464]
[1760207647818,0.55836677,111910.0,111900.0,0.65358464]
[1760207649922,0.55836677,111910.0,111900.0,0.1104959]
[1760207650122,0.55836677,111910.0,111900.0,0.65358464]
[1760207651124,0.45521887,111910.0,111900.0,1.20932338]
[1760207651527,0.45521887,111910.0,111900.0,1.08589964]
[1760207652028,0.09441887,111910.0,111900.0,1.08589964]
[1760207652222,0.07217887,111910.0,111900.0,1.08589964]
[1760207659429,0.07217887,111910.0,111900.0,1.44669964]
[1760207663833,0.07217887,111910.0,111900.0,1.08589964]
[1760207664025,0.07217887,111910.0,111900.0,1.44669964]
[1760207666332,0.07217887,111910.0,111900.0,1.08589964]
[1760207676943,0.09529887,111910.0,111900.0,1.08589964]
[1760207678742,0.10862887,111910.0,111900.0,1.08589964]
[1760207678943,0.46942887,111910.0,111900.0,1.08589964]
[1760207681242,0.10862887,111910.0,111900.0,1.08589964]
[1760207681444,0.46942887,111910.0,111900.0,1.08589964]
[1760207682141,0.46942887,111910.0,111900.0,1.00558455]
[1760207682339,0.46942887,111910.0,111900.0,0.60558455]
[1760207682942,0.46942887,111910.0,111900.0,0.68593037]
[1760207684139,0.45609887,111910.0,111900.0,0.68593037]
[1760207686848,0.09529887,111910.0,111900.0,0.68593037]
[1760207687048,0.45609887,111910.0,111900.0,0.68593037]
[1760207700555,0.46979887,111910.0,111900.0,0.68593037]
[1760207701152,0.86979887,111910.0,111900.0,0.19084172]
[1760207701759,0.86979887,111910.0,111900.0,0.67328037]
[1760207704265,0.85609887,111910.0,111900.0,0.68593037]
[1760207705360,0.86979887,111910.0,111900.0,0.68593037]
[1760207707264,0.85609887,111910.0,111900.0,0.68593037]
[1760207708160,0.49529887,111910.0,111900.0,0.68593037]
[1760207709566,0.49529887,111910.0,111900.0,0.60558455]
[1760207711058,0.47217887,111910.0,111900.0,0.60558455]
[1760207711558,0.49457887,111910.0,111900.0,0.60558455]
[1760207713469,0.49457887,111910.0,111900.0,1.20870996]
[1760207715769,0.49457887,111910.0,111900.0,1.28905578]
[1760207721276,0.49457887,111910.0,111900.0,0.74627375]
[1760207721576,0.50786887,111910.0,111900.0,0.74627375]
[1760207723175,0.50786887,111910.0,111900.0,0.66592793]
[1760207723375,0.86866887,111910.0,111900.0,0.65327793]
[1760207724872,0.86866887,111910.0,111900.0,0.73362886]
[1760207725378,0.86866887,111910.0,111900.0,0.65327793]
[1760207726683,0.86866887,111910.0,111900.0,0.73362898]
[1760207728283,0.86866887,111910.0,111900.0,0.65327793]
[1760207728484,0.86866887,111910.0,111900.0,0.73362911]
[1760207735581,0.86866887,111910.0,111900.0,0.65327793]
[1760207736992,0.86866887,111910.0,111900.0,0.1104959]
[1760207737192,0.86866887,111910.0,111900.0,0.65327793]
[1760207737892,0.03523,111900.0,111890.0,0.73426198]
[1760207738091,0.03523,111900.0,111890.0,0.19147995]
[1760207738092,0.93881203,111900.0,111890.0,0.19147995]
[1760207739788,0.93881203,111900.0,111890.0,0.65391083]
[1760207740186,0.93881203,111900.0,111890.0,0.1111288]
[1760207742797,0.93881203,111900.0,111890.0,0.65391083]
[1760207744594,0.39603,111900.0,111890.0,0.65391083]
[1760207745996,0.39603,111900.0,111890.0,0.66656083]
[1760207748798,0.39603,111900.0,111890.0,0.1111288]
[1760207748998,0.39603,111900.0,111890.0,0.65391083]
[1760207750293,0.43197887,111910.0,111900.0,0.1240459]
[1760207750491,0.3538,111910.0,111900.0,1.20960996]
[1760207750692,0.3538,111910.0,111900.0,1.60960996]
[1760207750895,0.3608,111920.0,111910.0,0.1240379]
[1760207751094,0.3608,111920.0,111910.0,0.66681993]
[1760207752195,0.3608,111920.0,111910.0,0.74717108]
[1760207757402,0.38274,111930.0,111920.0,0.1183299]
[1760207757601,0.38274,111930.0,111920.0,0.66111193]
[1760207758601,0.38374,111930.0,111920.0,0.66111193]
[1760207759505,0.02294,111930.0,111920.0,0.66111193]
[1760207760806,0.02294,111930.0,111920.0,1.20389396]
[1760207761807,0.02294,111930.0,111920.0,0.66111193]
[1760207764107,0.02294,111930.0,111920.0,1.20389396]
[1760207765306,0.02294,111930.0,111920.0,0.66111193]
[1760207769004,0.001,111930.0,111920.0,1.20389396]
[1760207769210,0.001,111930.0,111920.0,0.66111193]
[1760207769611,0.02294,111930.0,111920.0,0.66111193]
[1760207771707,0.001,111930.0,111920.0,0.66111193]
[1760207772011,0.001,111930.0,111920.0,1.20389396]
[1760207772406,0.001,111930.0,111920.0,0.66111193]
[1760207772602,0.001,111930.0,111920.0,1.20389396]
[1760207772808,0.001,111930.0,111920.0,1.96469396]
[1760207773009,0.07191008,111950.0,111940.0,0.122914]
[1760207773305,0.3608,111960.0,111950.0,0.122906]
[1760207773510,0.3608,111960.0,111950.0,0.60493055]
[1760207774106,0.4632401,111970.0,111960.0,0.110248]
[1760207774312,0.4850401,111970.0,111960.0,0.59227255]
[1760207774812,0.39582,111970.0,111960.0,0.59227255]
[1760207775612,0.3826,111970.0,111960.0,1.0812471]
[1760207775813,0.66087,111990.0,111980.0,0.02102]
[1760207776006,0.33695355,111990.0,111980.0,0.60490665]
[1760207776209,0.33695355,111990.0,111980.0,0.96570665]
[1760207776910,0.35875355,111990.0,111980.0,0.96570665]
[1760207777707,0.35975355,111990.0,111980.0,0.96570665]
[1760207781520,0.35975355,111990.0,111980.0,0.4836821]
[1760207781720,0.35975355,111990.0,111980.0,0.96570665]
[1760207782022,0.37238355,111990.0,111980.0,0.95305665]
[1760207782518,0.10674355,111990.0,111980.0,0.95305665]
[1760207785520,0.10674355,111990.0,111980.0,0.59225665]
[1760207787916,0.46754355,111990.0,111980.0,0.59225665]
[1760207788722,0.55674765,111990.0,111980.0,0.1102321]
[1760207789016,0.55674765,111990.0,111980.0,0.02102]
[1760207789222,0.1236421,111980.0,111970.0,0.59225985]
[1760207789417,0.03443,111980.0,111970.0,0.1102353]
[1760207789720,0.03443,111980.0,111970.0,0.59225985]
[1760207790411,0.0228,111980.0,111970.0,0.60490985]
[1760207791522,0.03543,111980.0,111970.0,0.59225985]
[1760207793826,0.0228,111980.0,111970.0,0.96570985]
[1760207794323,0.0228,111980.0,111970.0,0.60490985]
[1760207794524,0.03543,111980.0,111970.0,0.59225985]
[1760207798131,1.00666665,111980.0,111970.0,0.02102]
[1760207798332,1.36746665,111980.0,111970.0,0.02102]
[1760207799131,0.8854421,111980.0,111970.0,0.02102]
[1760207799429,0.8854421,111980.0,111970.0,0.1102401]
[1760207799828,0.8854421,111980.0,111970.0,0.0892201]
[1760207800024,0.0892201,111970.0,111960.0,0.84282455]
[1760207800230,0.1236501,111970.0,111960.0,0.59227265]
[1760207801127,0.5236501,111970.0,111960.0,0.02102]
[1760207801326,0.1233481,111960.0,111950.0,0.60268795]
[1760207801529,0.1233481,111960.0,111950.0,0.0089207]
[1760207801728,0.124476,111950.0,111940.0,0.11218684]
[1760207801928,0.485276,111950.0,111940.0,0.11218684]
[1760207802131,0.485276,111950.0,111940.0,0.59421139]
[1760207805537,0.55545864,111950.0,111940.0,0.59421139]
[1760207806035,0.55545864,111950.0,111940.0,0.60315827]
[1760207809636,0.95545864,111950.0,111940.0,0.09826372]
[1760207810138,0.95545864,111950.0,111940.0,0.12113372]
[1760207811341,0.95545864,111950.0,111940.0,7.634e-05]
[1760207814734,1.43748319,111950.0,111940.0,7.634e-05]
[1760207820343,0.0892439,111940.0,111930.0,0.0007885]
[1760207820539,0.96730845,111940.0,111930.0,0.0007885]
[1760207821448,0.96738705,111940.0,111930.0,0.0007885]
[1760207825850,0.4853625,111940.0,111930.0,0.59493495]
[1760207826859,0.4853625,111940.0,111930.0,0.0236585]
[1760207827043,0.4853625,111940.0,111930.0,0.0007885]
[1760207827249,0.96738705,111940.0,111930.0,0.0007885]
[1760207829456,0.4863625,111940.0,111930.0,0.0236585]
[1760207829853,0.4863625,111940.0,111930.0,0.1129082]
[1760207830048,0.4863625,111940.0,111930.0,0.59493275]
[1760207830648,0.4863625,111940.0,111930.0,0.1129082]
[1760207833554,0.4863625,111940.0,111930.0,0.65552649]
[1760207834554,0.4863625,111940.0,111930.0,1.19814478]
[1760207834955,0.4863625,111940.0,111930.0,0.65552649]
[1760207848670,0.4863625,111940.0,111930.0,0.56627679]
[1760207850160,1.02898079,111940.0,111930.0,0.0007885]
[1760207850468,1.02898079,111940.0,111930.0,0.54340679]
[1760207851665,1.42898079,111940.0,111930.0,0.0007885]
[1760207851872,0.1246476,111920.0,111910.0,0.03155253]
[1760207852072,0.66726589,111920.0,111910.0,0.57417082]
[1760207852772,0.1246476,111920.0,111910.0,0.57417082]
[1760207853067,0.4854476,111920.0,111910.0,0.57417082]
[1760207854179,0.4874476,111920.0,111910.0,0.57417082]
[1760207860381,0.4874476,111920.0,111910.0,0.66343642]
[1760207862380,0.4874476,111920.0,111910.0,0.57417082]
[1760207862576,0.1031586,111910.0,111900.0,0.1125021]
[1760207862786,0.4855286,111910.0,111900.0,0.56584829]
[1760207863280,1.02814689,111910.0,111900.0,0.00914266]
[1760207863481,0.1247336,111900.0,111890.0,0.64626304]
[1760207863776,0.1247971,111900.0,111890.0,0.65519349]
[1760207865081,0.1257971,111900.0,111890.0,0.65519349]
[1760207865782,0.19897477,111900.0,111890.0,0.65519349]
[1760207866584,0.10970117,111900.0,111890.0,0.65519349]
[1760207867278,0.19897477,111900.0,111890.0,0.65519349]
[1760207867983,0.19897477,111900.0,111890.0,0.6639905]
[1760207868884,0.19897477,111900.0,111890.0,0.6639897]
[1760207870282,0.19897477,111900.0,111890.0,0.00886061]
[1760207870482,0.74159306,111900.0,111890.0,0.5514789]
[1760207870783,1.10239306,111900.0,111890.0,0.5747089]
[1760207871683,1.10239306,111900.0,111890.0,0.5514789]
[1760207871990,1.50239306,111900.0,111890.0,0.00886061]
[1760207872188,1.50239306,111900.0,111890.0,0.5514789]
[1760207872685,0.95977477,111900.0,111890.0,0.5747089]
[1760207873489,0.95977477,111900.0,111890.0,0.6639897]
[1760207874790,0.95977477,111900.0,111890.0,0.12137141]
[1760207875092,0.95977477,111900.0,111890.0,0.6639897]
[1760207876188,0.47050117,111900.0,111890.0,0.5747089]
[1760207876491,0.10970117,111900.0,111890.0,0.6639897]
[1760207878387,0.19897397,111900.0,111890.0,0.6639897]
[1760207879396,0.19897397,111900.0,111890.0,0.12137141]
[1760207879596,0.55977397,111900.0,111890.0,0.6639897]
[1760207879998,0.19897397,111900.0,111890.0,0.12137141]
[1760207880200,0.19897397,111900.0,111890.0,0.6639897]
[1760207880398,0.19897397,111900.0,111890.0,0.12137141]
[1760207880598,0.19897397,111900.0,111890.0,0.6639897]
[1760207881198,0.55977397,111900.0,111890.0,0.6639897]
[1760207885807,0.55977397,111900.0,111890.0,0.03209061]
[1760207886104,0.55977397,111900.0,111890.0,0.5747089]
[1760207886305,0.55977397,111900.0,111890.0,0.6639896]
[1760207889306,0.19897397,111900.0,111890.0,0.6639896]
[1760207890005,0.10970117,111900.0,111890.0,0.6639896]
[1760207891604,0.19897397,111900.0,111890.0,0.6639896]
[1760207893009,0.19897397,111900.0,111890.0,0.74434075]
[1760207894005,0.09581117,111900.0,111890.0,1.68695904]
[1760207894212,0.09581117,111900.0,111890.0,1.15694075]
[1760207894610,0.09581117,111900.0,111890.0,1.69955904]
[1760207894810,0.09581117,111900.0,111890.0,1.15694075]
[1760207895408,0.09581117,111900.0,111890.0,1.0968283]
[1760207895607,0.07424117,111900.0,111890.0,1.01647715]
[1760207896012,0.07424117,111900.0,111890.0,1.37727715]
[1760207896311,0.07424117,111900.0,111890.0,1.48973339]
[1760207896512,0.07424117,111900.0,111890.0,1.37727715]
[1760207898913,0.07424117,111900.0,111890.0,1.45754562]
[1760207904214,0.08765117,111900.0,111890.0,1.09674562]
[1760207904410,0.08765117,111900.0,111890.0,1.45754562]
[1760207905416,0.07424117,111900.0,111890.0,1.37727715]
[1760207905615,0.07424117,111900.0,111890.0,1.45754562]
[1760207907014,0.07424117,111900.0,111890.0,1.05754562]
[1760207907217,0.08765117,111900.0,111890.0,1.04494562]
[1760207907418,0.08765117,111900.0,111890.0,1.05754562]
[1760207908119,0.08765117,111900.0,111890.0,0.97727715]
[1760207908321,0.10973117,111900.0,111890.0,0.97727715]
[1760207909020,0.10973117,111900.0,111890.0,1.05754562]
[1760207916136,0.09632117,111900.0,111890.0,1.05754562]
[1760207918237,0.09632117,111900.0,111890.0,0.97727715]
[1760207920537,0.10997117,111900.0,111890.0,0.96467715]
[1760207921538,0.09632117,111900.0,111890.0,0.97727715]
[1760207924940,0.07424117,111900.0,111890.0,0.97727715]
[1760207925347,0.0010635,111900.0,111890.0,0.97727715]
[1760207928440,0.0010635,111900.0,111890.0,1.08973339]
[1760207928748,0.0010635,111900.0,111890.0,1.48973339]
[1760207928946,1e-07,111900.0,111890.0,1.48973339]
[1760207929445,1e-07,111900.0,111890.0,1.37727715]
[1760207930148,1e-07,111900.0,111890.0,1.48966479]
[1760207930347,0.37406,111930.0,111920.0,0.1189168]
[1760207930348,0.39591,111930.0,111920.0,0.1189168]
[1760207930550,0.39591,111930.0,111920.0,0.60142264]
[1760207931445,0.02185,111940.0,111930.0,0.1244288]
[1760207931647,0.39621,111960.0,111950.0,0.1118129]
[1760207931846,0.39621,111960.0,111950.0,0.60347403]
[1760207932648,0.46612928,111960.0,111950.0,0.60347403]
[1760207933150,0.46712928,111960.0,111950.0,0.60347403]
[1760207933549,0.46912928,111960.0,111950.0,0.60347403]
[1760207933945,0.09476928,111960.0,111950.0,0.61607403]
[1760207934449,0.10832928,111960.0,111950.0,0.12096819]
[1760207934655,0.10832928,111960.0,111950.0,0.60347403]
[1760207937150,0.09476928,111960.0,111950.0,0.61607403]
[1760207937455,0.07291928,111960.0,111950.0,0.61607403]
[1760207937753,0.07291928,111960.0,111950.0,0.97687403]
[1760207939355,0.09476928,111960.0,111950.0,0.97687403]
[1760207940954,0.09476928,111960.0,111950.0,0.61607403]
[1760207942355,0.10832928,111960.0,111950.0,0.60347403]
[1760207942550,0.10832928,111960.0,111950.0,0.61607403]
[1760207943055,0.10732928,111960.0,111950.0,0.61607403]
[1760207943545,0.10732928,111960.0,111950.0,0.60347403]
[1760207944155,0.10632928,111960.0,111950.0,0.60347403]
[1760207944355,0.10732928,111960.0,111950.0,0.60347403]
[1760207944556,0.09376928,111960.0,111950.0,0.61607403]
[1760207944853,0.09276928,111960.0,111950.0,0.61607403]
[1760207945054,0.09376928,111960.0,111950.0,0.61607403]
[1760207948462,0.10732928,111960.0,111950.0,0.61607403]
[1760207949762,0.09376928,111960.0,111950.0,0.61607403]
[1760207951665,0.09376928,111960.0,111950.0,0.97687403]
[1760207953666,0.10668928,111960.0,111950.0,0.97687403]
[1760207954164,0.10668928,111960.0,111950.0,0.96427403]
[1760207956066,0.59591428,111960.0,111950.0,0.03173529]
[1760207956263,0.59591428,111960.0,111950.0,0.09838829]
[1760207956665,1.43922012,111960.0,111950.0,0.00915529]
[1760207956867,0.03428,111940.0,111930.0,0.38216]
[1760207957165,0.03428,111940.0,111930.0,0.86466584]
[1760207957468,0.03428,111940.0,111930.0,1.01394937]
[1760207958470,0.03528,111940.0,111930.0,1.01394937]
[1760207959569,0.03528,111940.0,111930.0,1.55648984]
[1760207960871,0.03528,111940.0,111930.0,1.56908984]
[1760207961477,0.03528,111940.0,111930.0,1.57790092]
[1760207961668,0.03528,111940.0,111930.0,1.56530092]
[1760207962273,0.03528,111940.0,111930.0,1.57790092]
[1760207964977,0.03528,111940.0,111930.0,1.56530092]
[1760207967071,0.03528,111940.0,111930.0,1.47605202]
[1760207967278,0.1245209,111940.0,111930.0,1.47605202]
[1760207967473,0.5245209,111940.0,111930.0,0.57271155]
[1760207968172,0.8853209,111940.0,111930.0,0.57271155]
[1760207968379,0.8853209,111940.0,111930.0,0.66196045]
[1760207968576,0.79608,111940.0,111930.0,0.66196045]
[1760207975277,0.885321,111940.0,111930.0,0.66196045]
[1760207979580,0.885321,111940.0,111930.0,0.11941998]
[1760207979780,0.885321,111940.0,111930.0,0.55135155]
[1760207979781,1.02786147,111940.0,111930.0,0.55135155]
[1760207980185,1.02786147,111940.0,111930.0,0.09805998]
[1760207980387,0.485321,111940.0,111930.0,0.66246045]
[1760207981888,0.39608,111940.0,111930.0,0.66246045]
[1760207982088,0.03528,111940.0,111930.0,0.66246045]
[1760207982289,0.03528,111940.0,111930.0,1.20500092]
[1760207983991,0.1245209,111940.0,111930.0,1.20500092]
[1760207984990,0.1245209,111940.0,111930.0,0.66246045]
[1760207986288,0.03528,111940.0,111930.0,1.21760092]
[1760207987489,0.03528,111940.0,111930.0,1.20500092]
[1760207989991,0.03528,111940.0,111930.0,1.57840092]
[1760207991298,0.03528,111940.0,111930.0,1.56580092]
[1760207992199,0.03528,111940.0,111930.0,1.64607781]
[1760207992500,0.1245209,111940.0,111930.0,1.64607781]
[1760207992700,0.1245209,111940.0,111930.0,1.28527781]
[1760207992999,0.03528,111940.0,111930.0,1.28527781]
[1760207993190,0.03528,111940.0,111930.0,0.20019687]
[1760207993391,0.03528,111940.0,111930.0,1.28527781]
[1760207993899,0.03528,111940.0,111930.0,1.64607781]
[1760207994101,0.03528,111940.0,111930.0,1.55682891]
[1760207995500,0.03528,111940.0,111930.0,1.64607781]
[1760207998202,0.03528,111940.0,111930.0,1.28527781]
[1760207998402,0.03528,111940.0,111930.0,1.64607781]
[1760208001505,1.42786137,111940.0,111930.0,0.11094797]
[1760208001709,0.8853209,111940.0,111930.0,0.57321155]
[1760208002415,0.8853209,111940.0,111930.0,0.66246045]
[1760208002710,0.8853209,111940.0,111930.0,0.03067108]
[1760208003009,1.42786137,111940.0,111930.0,0.55135155]
[1760208003210,1.42786137,111940.0,111930.0,0.54254047]
[1760208003810,1.42786137,111940.0,111930.0,0.63178937]
[1760208004913,1.42786137,111940.0,111930.0,0.55137462]
[1760208005713,1.42786137,111940.0,111930.0,0.64062352]
[1760208005913,1.42786137,111940.0,111930.0,0.66252352]
[1760208006114,0.8853209,111940.0,111930.0,0.66252352]
[1760208006315,0.8853209,111940.0,111930.0,0.55137462]
[1760208006618,0.8853209,111940.0,111930.0,0.00883415]
[1760208006918,1.42786137,111940.0,111930.0,0.54254047]
[1760208008416,1.42786137,111940.0,111930.0,0.66247512]
[1760208008616,0.8853209,111940.0,111930.0,0.66247512]
[1760208008820,0.8853209,111940.0,111930.0,0.11993465]
[1760208009020,0.8853209,111940.0,111930.0,0.66247512]
[1760208011219,0.5245209,111940.0,111930.0,0.66247512]
[1760208011419,0.8853209,111940.0,111930.0,0.66247512]
[1760208011920,0.5245209,111940.0,111930.0,0.66247512]
[1760208013413,0.02236,111940.0,111930.0,1.57841559]
[1760208013617,0.03601,111940.0,111930.0,1.02327512]
[1760208013917,0.03601,111940.0,111930.0,0.66247512]
[1760208015921,0.03601,111940.0,111930.0,1.20501559]
[1760208016222,0.03601,111940.0,111930.0,1.21761559]
[1760208016521,0.03601,111940.0,111930.0,1.57841559]
[1760208016818,0.03601,111940.0,111930.0,1.97841559]
[1760208016819,0.001,111940.0,111930.0,1.97841559]
[1760208017021,0.001,111940.0,111930.0,2.17108012]
[1760208017221,0.001,111940.0,111930.0,2.09080323]
[1760208019422,0.001,111940.0,111930.0,1.48783889]
[1760208020523,0.001,111940.0,111930.0,1.37545125]
[1760208023734,0.0902409,111940.0,111930.0,1.37545125]
[1760208025130,0.001,111940.0,111930.0,1.45556951]
[1760208026127,0.001,111940.0,111930.0,1.37545125]
[1760208026326,0.001,111940.0,111930.0,1.45555251]
[1760208026526,0.001,111940.0,111930.0,1.37545125]
[1760208027831,0.001,111940.0,111930.0,1.45554887]
[1760208028032,0.001,111940.0,111930.0,1.37545125]
[1760208028233,0.001,111940.0,111930.0,1.45554183]
[1760208028429,0.001,111940.0,111930.0,1.45553968]
[1760208034138,0.001,111940.0,111930.0,1.37545125]
[1760208034335,0.15914918,111960.0,111950.0,0.1220629]
[1760208034536,0.15914918,111960.0,111950.0,0.68426198]
[1760208034939,0.09109928,111960.0,111950.0,0.68426198]
[1760208035334,0.18032428,111960.0,111950.0,0.68426198]
[1760208035535,0.18132428,111960.0,111950.0,0.68426198]
[1760208037136,0.09209928,111960.0,111950.0,0.68426198]
[1760208037446,0.09309928,111960.0,111950.0,0.68426198]
[1760208039641,0.07191928,111960.0,111950.0,0.68426198]
[1760208040246,0.07191928,111960.0,111950.0,1.04506198]
[1760208040432,1e-07,111960.0,111950.0,1.92717858]
[1760208040638,0.02311,111990.0,111980.0,0.124419]
[1760208040840,0.39756,112000.0,111990.0,0.1118111]
[1760208041142,0.39756,112000.0,111990.0,0.5939277]
[1760208041536,0.39756,112000.0,111990.0,0.12093366]
[1760208042244,0.39756,112000.0,111990.0,0.60305026]
[1760208043639,0.39856,112000.0,111990.0,0.60305026]
[1760208045549,0.46990285,112000.0,111990.0,0.60305026]
[1760208049051,0.55909585,112000.0,111990.0,0.60305026]
[1760208058857,0.55909585,112000.0,111990.0,0.03173256]
[1760208059062,0.55909585,112000.0,111990.0,0.00912256]
[1760208059261,0.55909585,112000.0,111980.0,0.5713209]
[1760208059456,0.03643,111990.0,111980.0,0.60206217]
[1760208060257,0.39723,111990.0,111980.0,0.60206217]
[1760208060469,0.03643,111990.0,111980.0,0.60206217]
[1760208060669,0.39723,111990.0,111980.0,0.60206217]
[1760208064765,0.03643,111990.0,111980.0,0.60206217]
[1760208064967,0.03643,111990.0,111980.0,0.61466217]
[1760208067960,0.03643,111990.0,111980.0,0.60206217]
[1760208073273,0.03643,111990.0,111980.0,0.68211496]
[1760208075876,0.125631,111990.0,111980.0,0.68211496]
[1760208077572,0.03643,111990.0,111980.0,0.68211496]
[1760208077975,0.02256,111990.0,111980.0,0.69471496]
[1760208078877,0.03531,111990.0,111980.0,0.69471496]
[1760208079577,0.03531,111990.0,111980.0,0.75464813]
[1760208080676,0.02256,111990.0,111980.0,0.75464813]
[1760208081072,0.03531,111990.0,111980.0,0.75464813]
[1760208086278,0.03531,111990.0,111980.0,0.74204813]
[1760208091186,0.39611,111990.0,111980.0,0.74204813]
[1760208092790,0.4853111,111990.0,111980.0,0.65284383]
[1760208095586,0.39611,111990.0,111980.0,0.65284383]
[1760208096184,0.39611,111990.0,111980.0,0.74205293]
[1760208097392,0.39611,111990.0,111980.0,0.20000316]
[1760208097588,0.39611,111990.0,111980.0,0.74205293]
[1760208098392,0.03531,111990.0,111980.0,0.74205293]
[1760208099892,0.39611,111990.0,111980.0,0.74205293]
[1760208102794,0.03531,111990.0,111980.0,0.74205293]
[1760208103098,0.39611,111990.0,111980.0,0.74205293]
[1760208106498,0.38336,111990.0,111980.0,0.75465293]
[1760208107398,0.03519,111990.0,111980.0,0.75465293]
[1760208107698,0.03519,111990.0,111980.0,0.74205293]
[1760208117808,0.03519,111990.0,111980.0,0.75465293]
[1760208118706,0.03519,111990.0,111980.0,1.11545293]
[1760208122914,0.03519,111990.0,111980.0,1.10285293]
[1760208123210,0.03519,111990.0,111980.0,0.74205293]
[1760208126222,0.39599,111990.0,111980.0,0.74205293]
[1760208126618,0.03519,111990.0,111980.0,0.74205293]
[1760208126820,0.39599,111990.0,111980.0,0.74205293]
[1760208127523,0.03519,111990.0,111980.0,0.74205293]
[1760208131118,0.03519,111990.0,111980.0,0.20000316]
[1760208131324,1.42724087,111990.0,111980.0,0.63082383]
[1760208131518,1.42724087,111990.0,111980.0,0.55077104]
[1760208131823,0.8851911,111990.0,111980.0,0.57194104]
[1760208133832,0.8851911,111990.0,111980.0,0.55077104]
[1760208136334,1.42724087,111990.0,111980.0,0.55077104]
[1760208137532,0.8851911,111990.0,111980.0,0.55077104]
[1760208138033,0.8851911,111990.0,111980.0,0.00872127]
[1760208138234,1.42724087,111990.0,111980.0,0.54204977]
[1760208138434,1.42724087,111990.0,111980.0,0.62210256]
[1760208138937,1.42724087,111990.0,111980.0,0.63112617]
[1760208139329,1.42724087,111990.0,111980.0,0.65229617]
[1760208139734,0.8851911,111990.0,111980.0,0.65229617]
[1760208140527,0.8851911,111990.0,111980.0,0.57224338]
[1760208140733,1.42724087,111990.0,111980.0,0.57224338]
[1760208141027,0.1238792,111980.0,111970.0,0.10122279]
[1760208141233,1.02672897,111980.0,111970.0,0.08005279]
[1760208141433,0.03467,111970.0,111960.0,0.19044429]
[1760208141733,0.39547,111970.0,111960.0,0.19044429]
[1760208142336,0.39547,111970.0,111960.0,0.67253648]
[1760208143128,0.4846871,111970.0,111960.0,0.11023697]
[1760208143333,0.4846871,111970.0,111960.0,0.19946207]
[1760208143533,0.4856871,111970.0,111960.0,0.11940928]
[1760208143837,0.39647,111970.0,111960.0,0.11940928]
[1760208144633,0.4856871,111970.0,111960.0,0.11940928]
[1760208145837,0.4856871,111970.0,111960.0,0.60150147]
[1760208151239,0.03567,111970.0,111960.0,0.60150147]
[1760208151438,0.39647,111970.0,111960.0,0.60150147]
[1760208156344,0.4856871,111970.0,111960.0,0.60150147]
[1760208159649,0.03567,111970.0,111960.0,0.60150147]
[1760208159950,0.1248871,111970.0,111960.0,0.60150147]
[1760208163451,0.4856871,111970.0,111960.0,0.60150147]
[1760208165950,0.03567,111970.0,111960.0,0.60858147]
[1760208166155,0.02241,111970.0,111960.0,0.96938147]
[1760208167658,0.02241,111970.0,111960.0,1.04943426]
[1760208173465,0.02141,111970.0,111960.0,1.04943426]
[1760208173864,0.4626352,111990.0,111970.0,0.1249671]
[1760208174065,0.4852852,111990.0,111980.0,0.50524219]